[Event "*** SCC Grand Prix: Titled Tuesday Blitz"]
[Site "Chess.com"]
[Date "2020.06.09"]
[Round "5"]
[White "GM_dmitrij"]
[Black "MirMan90"]
[Result "1-0"]
[WhiteElo "2964"]
[BlackElo "2656"]
[TimeControl "180+1"]
[EndTime "9:57:27 PDT"]
[Termination "GM_dmitrij won by resignation"]

1. e4 {[%clk 0:03:00.9]} 1... c5 {[%clk 0:03:00]} 2. Nf3 {[%clk 0:03:01.4]} 2...
d6 {[%clk 0:03:00.2]} 3. Bb5+ {[%clk 0:03:01.7]} 3... Nd7 {[%clk 0:02:58.9]} 4.
O-O {[%clk 0:03:01.5]} 4... a6 {[%clk 0:02:57.8]} 5. Bd3 {[%clk 0:03:01.7]} 5...
Ngf6 {[%clk 0:02:54]} 6. Re1 {[%clk 0:03:02.2]} 6... e6 {[%clk 0:02:51.1]} 7. c3
{[%clk 0:03:02.7]} 7... b5 {[%clk 0:02:50.4]} 8. Bc2 {[%clk 0:03:03.6]} 8... c4
{[%clk 0:02:50]} 9. a4 {[%clk 0:03:04]} 9... Bb7 {[%clk 0:02:49]} 10. d4 {[%clk
0:03:04.5]} 10... cxd3 {[%clk 0:02:49.3]} 11. Qxd3 {[%clk 0:03:04.9]} 11... Nc5
{[%clk 0:02:48.4]} 12. Qe2 {[%clk 0:03:05.2]} 12... bxa4 {[%clk 0:02:47.9]} 13.
Be3 {[%clk 0:03:05.6]} 13... Nfd7 {[%clk 0:02:47.3]} 14. Bxc5 {[%clk 0:02:54.1]}
14... Nxc5 {[%clk 0:02:46.1]} 15. Rxa4 {[%clk 0:02:54.6]} 15... Be7 {[%clk
0:02:44.9]} 16. Rd4 {[%clk 0:02:52.2]} 16... Qc7 {[%clk 0:02:42.4]} 17. e5
{[%clk 0:02:41.9]} 17... d5 {[%clk 0:02:26.5]} 18. Rg4 {[%clk 0:02:10.5]} 18...
g6 {[%clk 0:02:25.2]} 19. Nbd2 {[%clk 0:02:09.4]} 19... Bf8 {[%clk 0:02:11.5]}
20. h4 {[%clk 0:02:04.3]} 20... h5 {[%clk 0:02:07.6]} 21. Rg3 {[%clk 0:01:50.7]}
21... Bg7 {[%clk 0:01:33.2]} 22. Nd4 {[%clk 0:01:51]} 22... Rg8 {[%clk
0:01:02.5]} 23. b4 {[%clk 0:01:17.7]} 23... Nd7 {[%clk 0:00:59.1]} 24. Re3
{[%clk 0:01:18]} 24... Bh6 {[%clk 0:00:56.3]} 25. Rf3 {[%clk 0:01:11.7]} 25...
Nxe5 {[%clk 0:00:44.6]} 26. Rg3 {[%clk 0:00:57.3]} 26... Bf4 {[%clk 0:00:41.3]}
27. Rh3 {[%clk 0:00:56.4]} 27... O-O-O {[%clk 0:00:38.5]} 28. N2b3 {[%clk
0:00:52.2]} 28... Nc4 {[%clk 0:00:32.6]} 29. Nc5 {[%clk 0:00:50.3]} 29... e5
{[%clk 0:00:24.6]} 30. Ndb3 {[%clk 0:00:49.8]} 30... e4 {[%clk 0:00:20.5]} 31.
Ra1 {[%clk 0:00:41.1]} 31... Rd6 {[%clk 0:00:13.9]} 32. Nxb7 {[%clk 0:00:37.1]}
32... Qxb7 {[%clk 0:00:12.9]} 33. Nc5 {[%clk 0:00:38]} 33... Qa8 {[%clk
0:00:11.8]} 34. Bb3 {[%clk 0:00:38]} 34... Ne5 {[%clk 0:00:06.5]} 35. b5 {[%clk
0:00:29.5]} 35... a5 {[%clk 0:00:06.2]} 36. c4 {[%clk 0:00:27]} 36... d4 {[%clk
0:00:06.1]} 37. Nxe4 {[%clk 0:00:26.9]} 37... Rdd8 {[%clk 0:00:05]} 38. Nc5
{[%clk 0:00:21.6]} 38... d3 {[%clk 0:00:05.1]} 39. Nxd3 {[%clk 0:00:20.5]} 39...
Nxd3 {[%clk 0:00:05]} 40. Rxd3 {[%clk 0:00:21.4]} 40... Rge8 {[%clk 0:00:05.3]}
41. Qf1 {[%clk 0:00:20.4]} 41... Rxd3 {[%clk 0:00:05]} 42. Qxd3 {[%clk
0:00:21.3]} 42... Rd8 {[%clk 0:00:04.9]} 43. Qe2 {[%clk 0:00:19.9]} 43... Kb8
{[%clk 0:00:02.5]} 44. c5 {[%clk 0:00:19.6]} 44... Qb7 {[%clk 0:00:02.4]} 45. c6
{[%clk 0:00:19.6]} 45... Qb6 {[%clk 0:00:02.4]} 46. Bxf7 {[%clk 0:00:19.8]}
46... Bd6 {[%clk 0:00:01.7]} 47. Rd1 {[%clk 0:00:19]} 47... Bc5 {[%clk
0:00:01.6]} 48. Rxd8+ {[%clk 0:00:19.9]} 48... Qxd8 {[%clk 0:00:01.9]} 49. Bxg6
{[%clk 0:00:20.2]} 49... a4 {[%clk 0:00:02]} 50. Bf7 {[%clk 0:00:20]} 50... a3
{[%clk 0:00:02.1]} 51. Qe5+ {[%clk 0:00:19.7]} 51... Bd6 {[%clk 0:00:01.8]} 52.
Qd5 {[%clk 0:00:17.9]} 52... Qf6 {[%clk 0:00:02]} 53. g3 {[%clk 0:00:17.4]}
53... Bc7 {[%clk 0:00:01.7]} 54. Kg2 {[%clk 0:00:16.2]} 54... Bb6 {[%clk
0:00:02.3]} 55. Qf3 {[%clk 0:00:16.7]} 55... Kc7 {[%clk 0:00:02.6]} 56. Qxf6
{[%clk 0:00:16.6]} 1-0

[Event "*** SCC Grand Prix: Titled Tuesday Blitz"]
[Site "Chess.com"]
[Date "2020.06.09"]
[Round "5"]
[White "Khvicha_Supatashvili"]
[Black "Fandorine"]
[Result "0-1"]
[WhiteElo "2725"]
[BlackElo "2901"]
[TimeControl "180+1"]
[EndTime "9:57:30 PDT"]
[Termination "Fandorine won on time"]

1. d4 {[%clk 0:03:00.9]} 1... Nf6 {[%clk 0:03:00.2]} 2. c4 {[%clk 0:03:00.4]}
2... g6 {[%clk 0:03:00.6]} 3. Nc3 {[%clk 0:02:59.8]} 3... Bg7 {[%clk 0:03:01.2]}
4. e4 {[%clk 0:02:59.3]} 4... d6 {[%clk 0:03:01.8]} 5. Nf3 {[%clk 0:02:59.3]}
5... O-O {[%clk 0:03:02.3]} 6. Be2 {[%clk 0:02:59.6]} 6... e5 {[%clk 0:03:03]}
7. O-O {[%clk 0:02:59.5]} 7... Na6 {[%clk 0:03:03.6]} 8. Re1 {[%clk 0:02:52.7]}
8... c6 {[%clk 0:03:03]} 9. Bf1 {[%clk 0:02:42.2]} 9... exd4 {[%clk 0:03:03]}
10. Nxd4 {[%clk 0:02:41.8]} 10... Ng4 {[%clk 0:03:03.5]} 11. Nf3 {[%clk
0:02:35.9]} 11... Ne5 {[%clk 0:02:53.4]} 12. Nxe5 {[%clk 0:02:19.6]} 12... dxe5
{[%clk 0:02:50.8]} 13. Qxd8 {[%clk 0:02:18.8]} 13... Rxd8 {[%clk 0:02:51.6]} 14.
Bg5 {[%clk 0:02:19.1]} 14... Re8 {[%clk 0:02:50.2]} 15. Be3 {[%clk 0:02:16.9]}
15... Nc7 {[%clk 0:02:48.2]} 16. c5 {[%clk 0:02:16.3]} 16... Ne6 {[%clk
0:02:47.9]} 17. Bc4 {[%clk 0:02:15.1]} 17... Nd4 {[%clk 0:02:40.3]} 18. Rac1
{[%clk 0:02:14]} 18... Be6 {[%clk 0:02:31.2]} 19. Bxe6 {[%clk 0:02:12.5]} 19...
Nxe6 {[%clk 0:02:32.1]} 20. Red1 {[%clk 0:02:03.5]} 20... Red8 {[%clk
0:02:26.8]} 21. f3 {[%clk 0:01:49.3]} 21... Bf8 {[%clk 0:02:22.9]} 22. Na4
{[%clk 0:01:48.5]} 22... f5 {[%clk 0:02:14.6]} 23. Kf1 {[%clk 0:01:46.4]} 23...
Kf7 {[%clk 0:02:14.8]} 24. Ke2 {[%clk 0:01:45.9]} 24... Be7 {[%clk 0:02:14]} 25.
Rxd8 {[%clk 0:01:38.4]} 25... Rxd8 {[%clk 0:01:37.2]} 26. Rd1 {[%clk 0:01:37.4]}
26... Rb8 {[%clk 0:01:09.8]} 27. b4 {[%clk 0:01:32.3]} 27... Ke8 {[%clk
0:01:03.8]} 28. Nb2 {[%clk 0:01:21]} 28... fxe4 {[%clk 0:00:54.4]} 29. fxe4
{[%clk 0:01:20.4]} 29... a5 {[%clk 0:00:55.1]} 30. a3 {[%clk 0:01:18.6]} 30...
axb4 {[%clk 0:00:53.8]} 31. axb4 {[%clk 0:01:18.5]} 31... Ra8 {[%clk 0:00:54.3]}
32. Nd3 {[%clk 0:01:16]} 32... Ra4 {[%clk 0:00:47.3]} 33. Rb1 {[%clk 0:01:10.3]}
33... Bf6 {[%clk 0:00:36.7]} 34. Rb2 {[%clk 0:01:06.7]} 34... Nc7 {[%clk
0:00:36.9]} 35. Bf2 {[%clk 0:01:03.6]} 35... Nb5 {[%clk 0:00:37]} 36. Bg3 {[%clk
0:00:53.4]} 36... Nc3+ {[%clk 0:00:35.1]} 37. Kf3 {[%clk 0:00:49.4]} 37... Ra3
{[%clk 0:00:35.2]} 38. Rd2 {[%clk 0:00:43.4]} 38... Nb1 {[%clk 0:00:14.3]} 39.
Rd1 {[%clk 0:00:42.6]} 39... Nc3 {[%clk 0:00:13.6]} 40. Rd2 {[%clk 0:00:42.4]}
40... Nb5 {[%clk 0:00:08.3]} 41. Kf2 {[%clk 0:00:17.6]} 41... Bg5 {[%clk
0:00:06.9]} 42. Rd1 {[%clk 0:00:15.9]} 42... Nc3 {[%clk 0:00:07.3]} 43. Re1
{[%clk 0:00:15.8]} 43... Bd2 {[%clk 0:00:07.5]} 44. Rf1 {[%clk 0:00:11.6]} 44...
Nxe4+ {[%clk 0:00:07.9]} 45. Ke2 {[%clk 0:00:11.7]} 45... Bc3 {[%clk 0:00:05.4]}
46. Bxe5 {[%clk 0:00:10.5]} 46... Bxe5 {[%clk 0:00:05]} 47. Nxe5 {[%clk
0:00:10.7]} 47... Nc3+ {[%clk 0:00:05.7]} 48. Kd3 {[%clk 0:00:09.2]} 48... Nd5+
{[%clk 0:00:05.9]} 49. Kc4 {[%clk 0:00:08.3]} 49... Ne3+ {[%clk 0:00:06.3]} 50.
Kd4 {[%clk 0:00:06.8]} 50... Nxf1 {[%clk 0:00:06.8]} 0-1

[Event "*** SCC Grand Prix: Titled Tuesday Blitz"]
[Site "Chess.com"]
[Date "2020.06.09"]
[Round "5"]
[White "woodhy"]
[Black "GM_Buhmann"]
[Result "0-1"]
[WhiteElo "2456"]
[BlackElo "2735"]
[TimeControl "180+1"]
[EndTime "9:57:30 PDT"]
[Termination "GM_Buhmann won by checkmate"]

1. e4 {[%clk 0:03:00.9]} 1... c5 {[%clk 0:02:59.9]} 2. Nf3 {[%clk 0:03:00.6]}
2... d6 {[%clk 0:03:00.4]} 3. d4 {[%clk 0:03:00.8]} 3... cxd4 {[%clk 0:03:01]}
4. Nxd4 {[%clk 0:03:01.7]} 4... Nf6 {[%clk 0:03:01.4]} 5. f3 {[%clk 0:03:02]}
5... a6 {[%clk 0:03:01.7]} 6. c4 {[%clk 0:03:01]} 6... e6 {[%clk 0:02:55.6]} 7.
Nc3 {[%clk 0:03:00.8]} 7... b6 {[%clk 0:02:55]} 8. Be3 {[%clk 0:02:59.6]} 8...
Bb7 {[%clk 0:02:55.4]} 9. Be2 {[%clk 0:02:59.9]} 9... Nbd7 {[%clk 0:02:55.6]}
10. O-O {[%clk 0:03:00.2]} 10... Be7 {[%clk 0:02:56.1]} 11. Rc1 {[%clk
0:03:00.3]} 11... O-O {[%clk 0:02:55.3]} 12. Qe1 {[%clk 0:02:55]} 12... Re8
{[%clk 0:02:54.5]} 13. Qf2 {[%clk 0:02:55]} 13... Qc7 {[%clk 0:02:50.5]} 14. b4
{[%clk 0:02:51.4]} 14... Rac8 {[%clk 0:02:50.2]} 15. Nb3 {[%clk 0:02:50.5]}
15... Qb8 {[%clk 0:02:36.5]} 16. Na4 {[%clk 0:02:46.6]} 16... d5 {[%clk
0:02:28.6]} 17. Nxb6 {[%clk 0:02:01.1]} 17... Nxb6 {[%clk 0:02:24.3]} 18. Bxb6
{[%clk 0:02:02]} 18... dxe4 {[%clk 0:02:24.9]} 19. Bc5 {[%clk 0:01:56.2]} 19...
exf3 {[%clk 0:02:21.8]} 20. Bxf3 {[%clk 0:01:54.5]} 20... Bxf3 {[%clk
0:02:17.5]} 21. Qxf3 {[%clk 0:01:54.4]} 21... Bxc5+ {[%clk 0:02:18]} 22. Nxc5
{[%clk 0:01:44.6]} 22... Qxb4 {[%clk 0:02:17.1]} 23. Nd7 {[%clk 0:01:38.9]}
23... Qe7 {[%clk 0:01:36.4]} 24. Nxf6+ {[%clk 0:01:12.5]} 24... Qxf6 {[%clk
0:01:35.1]} 25. Qxf6 {[%clk 0:01:11.5]} 25... gxf6 {[%clk 0:01:35.6]} 26. Rxf6
{[%clk 0:01:12.3]} 26... Re7 {[%clk 0:01:35.9]} 27. c5 {[%clk 0:01:08.3]} 27...
Rec7 {[%clk 0:01:35.4]} 28. Rcf1 {[%clk 0:01:02.9]} 28... Rd8 {[%clk 0:01:34.7]}
29. R1f3 {[%clk 0:00:46.5]} 29... Rd5 {[%clk 0:01:33.9]} 30. Ra3 {[%clk
0:00:41.2]} 30... Rc6 {[%clk 0:01:24.6]} 31. Rg3+ {[%clk 0:00:40.7]} 31... Kf8
{[%clk 0:01:23.9]} 32. Rh6 {[%clk 0:00:38]} 32... Rcxc5 {[%clk 0:01:21.8]} 33.
h4 {[%clk 0:00:33.2]} 33... Rh5 {[%clk 0:01:20.6]} 34. Rxh5 {[%clk 0:00:29.1]}
34... Rxh5 {[%clk 0:01:20.4]} 35. Rg4 {[%clk 0:00:30]} 35... Ra5 {[%clk
0:01:20.2]} 36. a4 {[%clk 0:00:29.5]} 36... Rd5 {[%clk 0:01:19.1]} 37. Kf2
{[%clk 0:00:27.6]} 37... Ke7 {[%clk 0:01:18.8]} 38. Rg7 {[%clk 0:00:25.5]} 38...
h5 {[%clk 0:01:15.1]} 39. Rh7 {[%clk 0:00:22.1]} 39... Kf6 {[%clk 0:01:12.6]}
40. Rh8 {[%clk 0:00:20.3]} 40... Kg7 {[%clk 0:01:12.6]} 41. Rc8 {[%clk 0:00:19]}
41... Rd4 {[%clk 0:01:11.2]} 42. Rc5 {[%clk 0:00:19]} 42... Rd5 {[%clk
0:00:55.8]} 43. Rc6 {[%clk 0:00:15.9]} 43... Ra5 {[%clk 0:00:53.5]} 44. Rc4
{[%clk 0:00:15.7]} 44... Kg6 {[%clk 0:00:52.9]} 45. Kf3 {[%clk 0:00:15.7]} 45...
Rf5+ {[%clk 0:00:52]} 46. Ke3 {[%clk 0:00:15.4]} 46... a5 {[%clk 0:00:52.3]} 47.
g3 {[%clk 0:00:14.9]} 47... Kf6 {[%clk 0:00:52.3]} 48. Rd4 {[%clk 0:00:13.8]}
48... Rc5 {[%clk 0:00:52.3]} 49. Kf3 {[%clk 0:00:13.2]} 49... Ke5 {[%clk
0:00:48.9]} 50. Rf4 {[%clk 0:00:12.5]} 50... Rc3+ {[%clk 0:00:46.5]} 51. Kf2
{[%clk 0:00:12.5]} 51... f5 {[%clk 0:00:47.2]} 52. Kg2 {[%clk 0:00:11.8]} 52...
Kd5 {[%clk 0:00:45.5]} 53. Kf2 {[%clk 0:00:11.9]} 53... Rc4 {[%clk 0:00:45.8]}
54. Ke3 {[%clk 0:00:11.4]} 54... Rxf4 {[%clk 0:00:43.5]} 55. Kxf4 {[%clk
0:00:12.3]} 55... Kd4 {[%clk 0:00:34.8]} 56. Kg5 {[%clk 0:00:10.7]} 56... e5
{[%clk 0:00:34.6]} 57. Kxf5 {[%clk 0:00:09]} 57... e4 {[%clk 0:00:34.9]} 58. g4
{[%clk 0:00:09.9]} 58... e3 {[%clk 0:00:35.6]} 59. g5 {[%clk 0:00:09.5]} 59...
e2 {[%clk 0:00:36.2]} 60. g6 {[%clk 0:00:09.6]} 60... e1=Q {[%clk 0:00:36]} 61.
Kf6 {[%clk 0:00:10.2]} 61... Qe8 {[%clk 0:00:35]} 62. Kg7 {[%clk 0:00:10.1]}
62... Ke5 {[%clk 0:00:34.9]} 63. Kh7 {[%clk 0:00:07.7]} 63... Kf6 {[%clk
0:00:34.8]} 64. g7 {[%clk 0:00:06.7]} 64... Qg6+ {[%clk 0:00:34.9]} 65. Kh8
{[%clk 0:00:07.1]} 65... Qxg7# {[%clk 0:00:35.4]} 0-1

[Event "*** SCC Grand Prix: Titled Tuesday Blitz"]
[Site "Chess.com"]
[Date "2020.06.09"]
[Round "5"]
[White "manmanlai1"]
[Black "TST2014"]
[Result "1-0"]
[WhiteElo "2398"]
[BlackElo "2533"]
[TimeControl "180+1"]
[EndTime "9:57:32 PDT"]
[Termination "manmanlai1 won by resignation"]

1. e4 {[%clk 0:03:00.9]} 1... c5 {[%clk 0:02:59.3]} 2. Nf3 {[%clk 0:03:00.4]}
2... Nc6 {[%clk 0:02:59.2]} 3. Bb5 {[%clk 0:02:55.9]} 3... g6 {[%clk 0:02:57.6]}
4. Bxc6 {[%clk 0:02:55.9]} 4... dxc6 {[%clk 0:02:57.2]} 5. d3 {[%clk 0:02:55.3]}
5... Bg7 {[%clk 0:02:57]} 6. Nc3 {[%clk 0:02:53.1]} 6... Nf6 {[%clk 0:02:56.1]}
7. Be3 {[%clk 0:02:52]} 7... Nd7 {[%clk 0:02:53.2]} 8. Qd2 {[%clk 0:02:51.6]}
8... h6 {[%clk 0:02:50.7]} 9. O-O {[%clk 0:02:49.7]} 9... e5 {[%clk 0:02:49.7]}
10. a3 {[%clk 0:02:49.1]} 10... f5 {[%clk 0:02:44.2]} 11. b4 {[%clk 0:02:44.8]}
11... b6 {[%clk 0:02:41.3]} 12. exf5 {[%clk 0:02:30.4]} 12... gxf5 {[%clk
0:02:40]} 13. Rfe1 {[%clk 0:02:29.9]} 13... Kf7 {[%clk 0:02:20.4]} 14. g3 {[%clk
0:01:29.6]} 14... Qf6 {[%clk 0:02:02]} 15. bxc5 {[%clk 0:01:20.3]} 15... bxc5
{[%clk 0:01:53.6]} 16. Ne2 {[%clk 0:01:11.4]} 16... e4 {[%clk 0:01:43.9]} 17.
Nh4 {[%clk 0:01:06.8]} 17... Ne5 {[%clk 0:01:40.8]} 18. Qa5 {[%clk 0:00:52.6]}
18... Be6 {[%clk 0:01:19.1]} 19. Nf4 {[%clk 0:00:49.8]} 19... Rhe8 {[%clk
0:01:02.7]} 20. Rab1 {[%clk 0:00:46.2]} 20... Bd5 {[%clk 0:00:58.2]} 21. Rb7+
{[%clk 0:00:41.9]} 21... Kg8 {[%clk 0:00:57.9]} 22. Nh5 {[%clk 0:00:39.1]} 22...
Qf7 {[%clk 0:00:25.7]} 23. Rxf7 {[%clk 0:00:37.4]} 23... Kxf7 {[%clk 0:00:26.2]}
24. Nxg7 {[%clk 0:00:33.7]} 24... Kxg7 {[%clk 0:00:21.7]} 25. Rb1 {[%clk
0:00:16.4]} 25... Re7 {[%clk 0:00:20.6]} 26. Nxf5+ {[%clk 0:00:15.3]} 26... Kf6
{[%clk 0:00:20.4]} 27. Nxe7 {[%clk 0:00:15.5]} 27... Kxe7 {[%clk 0:00:21]} 28.
dxe4 {[%clk 0:00:14.8]} 28... Bxe4 {[%clk 0:00:20.1]} 29. f4 {[%clk 0:00:14.7]}
29... Nf3+ {[%clk 0:00:20]} 30. Kf2 {[%clk 0:00:14.8]} 30... Rd8 {[%clk
0:00:18.6]} 31. Rb7+ {[%clk 0:00:12.8]} 31... Ke8 {[%clk 0:00:18.9]} 32. Qxc5
{[%clk 0:00:11.8]} 32... Rd7 {[%clk 0:00:18]} 33. Rxd7 {[%clk 0:00:10.6]} 33...
Kxd7 {[%clk 0:00:18.9]} 34. Qxa7+ {[%clk 0:00:10.6]} 34... Kd6 {[%clk
0:00:18.9]} 35. Qc5+ {[%clk 0:00:10.5]} 35... Kd7 {[%clk 0:00:19.2]} 36. a4
{[%clk 0:00:11]} 36... h5 {[%clk 0:00:13.9]} 37. a5 {[%clk 0:00:10.8]} 37... Kc7
{[%clk 0:00:14.4]} 38. a6 {[%clk 0:00:10.9]} 38... Kb8 {[%clk 0:00:14.2]} 39.
Qb6+ {[%clk 0:00:10.2]} 39... Kc8 {[%clk 0:00:14.4]} 40. a7 {[%clk 0:00:10.6]}
40... c5 {[%clk 0:00:15]} 41. Qxc5+ {[%clk 0:00:11]} 41... Kd7 {[%clk 0:00:15]}
42. Qb6 {[%clk 0:00:09.4]} 42... h4 {[%clk 0:00:13.9]} 43. Qb8 {[%clk
0:00:09.7]} 43... h3 {[%clk 0:00:13.2]} 44. a8=Q {[%clk 0:00:09.6]} 44... Bxa8
{[%clk 0:00:13.5]} 45. Qxa8 {[%clk 0:00:10.5]} 45... Nxh2 {[%clk 0:00:14.4]} 46.
Qg8 {[%clk 0:00:10.4]} 46... Ng4+ {[%clk 0:00:13.6]} 47. Qxg4+ {[%clk
0:00:08.5]} 47... Kd6 {[%clk 0:00:13.5]} 48. Qxh3 {[%clk 0:00:09.4]} 48... Kd5
{[%clk 0:00:13.9]} 49. g4 {[%clk 0:00:10.3]} 49... Kc4 {[%clk 0:00:14.4]} 50. g5
{[%clk 0:00:11.2]} 50... Kc3 {[%clk 0:00:14.6]} 51. g6 {[%clk 0:00:12.1]} 51...
Kxc2 {[%clk 0:00:15.5]} 52. g7 {[%clk 0:00:13]} 52... Kd1 {[%clk 0:00:16.4]} 53.
g8=Q {[%clk 0:00:13.4]} 53... Kc2 {[%clk 0:00:17.3]} 54. Qd8 {[%clk 0:00:13.4]}
54... Kb3 {[%clk 0:00:17.3]} 55. Qhc8 {[%clk 0:00:13.7]} 55... Ka4 {[%clk
0:00:17.3]} 56. Qb6 {[%clk 0:00:14.1]} 1-0

[Event "*** SCC Grand Prix: Titled Tuesday Blitz"]
[Site "Chess.com"]
[Date "2020.06.09"]
[Round "5"]
[White "bsnsun"]
[Black "kot60"]
[Result "1/2-1/2"]
[WhiteElo "2454"]
[BlackElo "2359"]
[TimeControl "180+1"]
[EndTime "9:57:32 PDT"]
[Termination "Game drawn - insufficient material"]

1. Nf3 {[%clk 0:02:57.5]} 1... Nf6 {[%clk 0:02:59]} 2. c4 {[%clk 0:02:57.2]}
2... g6 {[%clk 0:02:58.5]} 3. g3 {[%clk 0:02:57.6]} 3... d5 {[%clk 0:02:58.3]}
4. d4 {[%clk 0:02:58.5]} 4... Bg7 {[%clk 0:02:57.2]} 5. cxd5 {[%clk 0:02:58]}
5... Nxd5 {[%clk 0:02:56.8]} 6. Bg2 {[%clk 0:02:58.3]} 6... O-O {[%clk
0:02:56.2]} 7. O-O {[%clk 0:02:55]} 7... c5 {[%clk 0:02:56.2]} 8. dxc5 {[%clk
0:02:53.1]} 8... Na6 {[%clk 0:02:56.2]} 9. Nc3 {[%clk 0:02:30]} 9... Nxc3 {[%clk
0:02:54.4]} 10. bxc3 {[%clk 0:02:26.9]} 10... Qxd1 {[%clk 0:02:52.8]} 11. Rxd1
{[%clk 0:02:26.6]} 11... Bxc3 {[%clk 0:02:51.2]} 12. Rb1 {[%clk 0:02:26.9]}
12... Nxc5 {[%clk 0:02:50.4]} 13. Be3 {[%clk 0:02:27.1]} 13... b6 {[%clk
0:02:33]} 14. Nd4 {[%clk 0:02:00.3]} 14... Bxd4 {[%clk 0:02:27.6]} 15. Bxa8
{[%clk 0:00:33.5]} 15... Bxe3 {[%clk 0:02:18.8]} 16. fxe3 {[%clk 0:00:32.3]}
16... Bf5 {[%clk 0:02:07.4]} 17. e4 {[%clk 0:00:32.7]} 17... Nxe4 {[%clk
0:02:02.6]} 18. Bxe4 {[%clk 0:00:27.9]} 18... Bxe4 {[%clk 0:02:03.1]} 19. Rbc1
{[%clk 0:00:28.5]} 19... a5 {[%clk 0:01:57]} 20. Rc7 {[%clk 0:00:28.6]} 20... e6
{[%clk 0:01:54.8]} 21. a4 {[%clk 0:00:26.3]} 21... h5 {[%clk 0:01:51.8]} 22. Rd6
{[%clk 0:00:26.3]} 22... Rb8 {[%clk 0:01:49.1]} 23. Rdd7 {[%clk 0:00:26.7]}
23... Rf8 {[%clk 0:01:46.3]} 24. Ra7 {[%clk 0:00:26.4]} 24... Bc6 {[%clk
0:01:43.1]} 25. Rd6 {[%clk 0:00:26.8]} 25... Bxa4 {[%clk 0:01:42.7]} 26. Rxb6
{[%clk 0:00:26.6]} 26... Bd1 {[%clk 0:01:43]} 27. Kf2 {[%clk 0:00:26.5]} 27...
a4 {[%clk 0:01:42.2]} 28. Rbb7 {[%clk 0:00:23.3]} 28... Bb3 {[%clk 0:01:42.4]}
29. e4 {[%clk 0:00:21.6]} 29... e5 {[%clk 0:01:41.7]} 30. Re7 {[%clk 0:00:20.8]}
30... Be6 {[%clk 0:01:40.3]} 31. Rxa4 {[%clk 0:00:19]} 31... Rb8 {[%clk
0:01:40.4]} 32. Ra5 {[%clk 0:00:15.8]} 32... Rb2+ {[%clk 0:01:37]} 33. Kg1
{[%clk 0:00:16.1]} 33... Bg4 {[%clk 0:01:27.7]} 34. Rexe5 {[%clk 0:00:14.7]}
34... Bf3 {[%clk 0:01:27]} 35. Re7 {[%clk 0:00:13.5]} 35... Rg2+ {[%clk
0:01:25.5]} 36. Kf1 {[%clk 0:00:13.8]} 36... Rxh2 {[%clk 0:01:23.8]} 37. Ra8+
{[%clk 0:00:14.1]} 37... Kg7 {[%clk 0:01:22.8]} 38. Raa7 {[%clk 0:00:15]} 38...
Kh6 {[%clk 0:01:21.5]} 39. Rxf7 {[%clk 0:00:15.2]} 39... Bxe4 {[%clk 0:01:21.3]}
40. Rh7+ {[%clk 0:00:13.9]} 40... Kg5 {[%clk 0:01:20.6]} 41. Ra5+ {[%clk
0:00:14.8]} 41... Bf5 {[%clk 0:01:20.4]} 42. Rha7 {[%clk 0:00:14.6]} 42... Kg4
{[%clk 0:01:20.1]} 43. Ra3 {[%clk 0:00:14.5]} 43... Rh3 {[%clk 0:01:18.7]} 44.
R7a4+ {[%clk 0:00:14.4]} 44... Kg5 {[%clk 0:01:18.6]} 45. Kg2 {[%clk 0:00:15.1]}
45... h4 {[%clk 0:01:15.8]} 46. gxh4+ {[%clk 0:00:13.1]} 46... Rxh4 {[%clk
0:01:16.2]} 47. Rg3+ {[%clk 0:00:13.3]} 47... Rg4 {[%clk 0:01:13.3]} 48. Rgxg4+
{[%clk 0:00:11]} 48... Bxg4 {[%clk 0:01:13.5]} 49. Kg3 {[%clk 0:00:11.6]} 49...
Bf5 {[%clk 0:01:13.6]} 50. Ra5 {[%clk 0:00:11.7]} 50... Kh5 {[%clk 0:01:12.2]}
51. Kf4 {[%clk 0:00:11.5]} 51... Kh6 {[%clk 0:01:09.9]} 52. Ra8 {[%clk
0:00:11.3]} 52... Kg7 {[%clk 0:01:09.7]} 53. Ra7+ {[%clk 0:00:11.3]} 53... Kf6
{[%clk 0:01:09.4]} 54. Ra6+ {[%clk 0:00:11.8]} 54... Be6 {[%clk 0:01:08.9]} 55.
Rb6 {[%clk 0:00:10.6]} 55... Kf7 {[%clk 0:01:05.3]} 56. Kg5 {[%clk 0:00:10.5]}
56... Bf5 {[%clk 0:01:05.3]} 57. Rb7+ {[%clk 0:00:10.4]} 57... Ke6 {[%clk
0:01:05.3]} 58. Rb5 {[%clk 0:00:10.4]} 58... Kd6 {[%clk 0:01:04.9]} 59. Kf4
{[%clk 0:00:08.9]} 59... Kc6 {[%clk 0:01:04.8]} 60. Re5 {[%clk 0:00:08.6]} 60...
Kd6 {[%clk 0:01:04.9]} 61. Ra5 {[%clk 0:00:07.9]} 61... Kc6 {[%clk 0:01:05]} 62.
Ke3 {[%clk 0:00:07.9]} 62... Kb6 {[%clk 0:01:04.9]} 63. Re5 {[%clk 0:00:08.2]}
63... Kc6 {[%clk 0:01:05.1]} 64. Kd4 {[%clk 0:00:08.7]} 64... Kd6 {[%clk
0:01:05.4]} 65. Ra5 {[%clk 0:00:08.6]} 65... Kc6 {[%clk 0:01:05.4]} 66. Kc4
{[%clk 0:00:08.2]} 66... Kd6 {[%clk 0:01:05.5]} 67. Rd5+ {[%clk 0:00:05.7]}
67... Ke6 {[%clk 0:01:05.1]} 68. Kd4 {[%clk 0:00:06.2]} 68... Kf6 {[%clk
0:01:05.2]} 69. Re5 {[%clk 0:00:06.8]} 69... Kg5 {[%clk 0:01:04.7]} 70. Ke3
{[%clk 0:00:06.3]} 70... Kg4 {[%clk 0:01:04.4]} 71. Kf2 {[%clk 0:00:06.5]} 71...
Kf4 {[%clk 0:01:04]} 72. Ra5 {[%clk 0:00:05.7]} 72... g5 {[%clk 0:01:03.4]} 73.
Ra4+ {[%clk 0:00:06]} 73... Be4 {[%clk 0:01:03.5]} 74. Ra5 {[%clk 0:00:05]}
74... g4 {[%clk 0:01:03.4]} 75. Ra8 {[%clk 0:00:05.3]} 75... g3+ {[%clk
0:01:03.4]} 76. Kg1 {[%clk 0:00:05.3]} 76... Bf3 {[%clk 0:01:00.7]} 77. Rf8+
{[%clk 0:00:04.4]} 77... Ke3 {[%clk 0:01:00.8]} 78. Rg8 {[%clk 0:00:04.2]} 78...
Kf4 {[%clk 0:01:00.6]} 79. Rxg3 {[%clk 0:00:04.1]} 79... Kxg3 {[%clk 0:01:00.7]}
1/2-1/2